{"text_format":"3","workbook":"xlsx","n_sheets":3,"sheets":["Tvarkaraštis","Duomenų įrašas","Vardų apžvalga"],"not_rendered":{"defined_names":5},"read":"whole","date_system":"1900"}

{"sheet":"Tvarkaraštis","index":0,"n_rows":23,"n_cols":9,"rows_kept":23,"merged":[[1,1,2,3]]}
[]
[null,"DIENOS TVARKARAŠTIS",{"$nulls":4},"Savaitei iš ","Rodyti tvarkaraštį, skirtą "]
[{"$nulls":5},{"$f":"WEEKDAY(SavaitėIš,1)","v":3},"2012-07-03","Morisas"]
[null,null,{"$f":"$F$3=COLUMN(A$1)","v":false},{"$f":"$F$3=COLUMN(B$1)","v":false},true,false,false,false,false]
[null,null,{"$f":"COLUMN(A$1)-MATCH(TRUE,$C$4:$I$4,0)+SavaitėIš+1","v":"2012-07-02"},"2012-07-03","2012-07-04","2012-07-05","2012-07-06","2012-07-07","2012-07-08"]
[null,"LAIKAS","PIRMADIENIS","ANTRADIENIS","TREČIADIENIS","KETVIRTADIENIS","PENKTADIENIS","ŠEŠTADIENIS","SEKMADIENIS"]
[null,"06:00:00",{"$f":"IFERROR(INDEX(tblDuomenys[],MATCH(C$5+$B7&RodytiVardą,tblDuomenys[DATA IR LAIKAS]&tblDuomenys[KAS],0),3),\"\")","v":""},{"$f":"IFERROR(INDEX(tblDuomenys[],MATCH(D$5+$B7&RodytiVardą,tblDuomenys[DATA IR LAIKAS]&tblDuomenys[KAS],0),3),\"\")","v":""},{"$f":"IFERROR(INDEX(tblDuomenys[],MATCH(E$5+$B7&RodytiVardą,tblDuomenys[DATA IR LAIKAS]&tblDuomenys[KAS],0),3),\"\")","v":""},{"$f":"IFERROR(INDEX(tblDuomenys[],MATCH(F$5+$B7&RodytiVardą,tblDuomenys[DATA IR LAIKAS]&tblDuomenys[KAS],0),3),\"\")","v":""},{"$f":"IFERROR(INDEX(tblDuomenys[],MATCH(G$5+$B7&RodytiVardą,tblDuomenys[DATA IR LAIKAS]&tblDuomenys[KAS],0),3),\"\")","v":""},{"$f":"IFERROR(INDEX(tblDuomenys[],MATCH(H$5+$B7&RodytiVardą,tblDuomenys[DATA IR LAIKAS]&tblDuomenys[KAS],0),3),\"\")","v":""},{"$f":"IFERROR(INDEX(tblDuomenys[],MATCH(I$5+$B7&RodytiVardą,tblDuomenys[DATA IR LAIKAS]&tblDuomenys[KAS],0),3),\"\")","v":""}]
[null,"07:00:00",{"$f":"IFERROR(INDEX(tblDuomenys[],MATCH(C$5+$B8&RodytiVardą,tblDuomenys[DATA IR LAIKAS]&tblDuomenys[KAS],0),3),\"\")","v":""},{"$f":"IFERROR(INDEX(tblDuomenys[],MATCH(D$5+$B8&RodytiVardą,tblDuomenys[DATA IR LAIKAS]&tblDuomenys[KAS],0),3),\"\")","v":""},{"$f":"IFERROR(INDEX(tblDuomenys[],MATCH(E$5+$B8&RodytiVardą,tblDuomenys[DATA IR LAIKAS]&tblDuomenys[KAS],0),3),\"\")","v":""},{"$f":"IFERROR(INDEX(tblDuomenys[],MATCH(F$5+$B8&RodytiVardą,tblDuomenys[DATA IR LAIKAS]&tblDuomenys[KAS],0),3),\"\")","v":""},{"$f":"IFERROR(INDEX(tblDuomenys[],MATCH(G$5+$B8&RodytiVardą,tblDuomenys[DATA IR LAIKAS]&tblDuomenys[KAS],0),3),\"\")","v":""},{"$f":"IFERROR(INDEX(tblDuomenys[],MATCH(H$5+$B8&RodytiVardą,tblDuomenys[DATA IR LAIKAS]&tblDuomenys[KAS],0),3),\"\")","v":""},{"$f":"IFERROR(INDEX(tblDuomenys[],MATCH(I$5+$B8&RodytiVardą,tblDuomenys[DATA IR LAIKAS]&tblDuomenys[KAS],0),3),\"\")","v":""}]
[null,"08:00:00",{"$f":"IFERROR(INDEX(tblDuomenys[],MATCH(C$5+$B9&RodytiVardą,tblDuomenys[DATA IR LAIKAS]&tblDuomenys[KAS],0),3),\"\")","v":""},{"$f":"IFERROR(INDEX(tblDuomenys[],MATCH(D$5+$B9&RodytiVardą,tblDuomenys[DATA IR LAIKAS]&tblDuomenys[KAS],0),3),\"\")","v":""},{"$f":"IFERROR(INDEX(tblDuomenys[],MATCH(E$5+$B9&RodytiVardą,tblDuomenys[DATA IR LAIKAS]&tblDuomenys[KAS],0),3),\"\")","v":""},{"$f":"IFERROR(INDEX(tblDuomenys[],MATCH(F$5+$B9&RodytiVardą,tblDuomenys[DATA IR LAIKAS]&tblDuomenys[KAS],0),3),\"\")","v":""},{"$f":"IFERROR(INDEX(tblDuomenys[],MATCH(G$5+$B9&RodytiVardą,tblDuomenys[DATA IR LAIKAS]&tblDuomenys[KAS],0),3),\"\")","v":""},{"$f":"IFERROR(INDEX(tblDuomenys[],MATCH(H$5+$B9&RodytiVardą,tblDuomenys[DATA IR LAIKAS]&tblDuomenys[KAS],0),3),\"\")","v":""},{"$f":"IFERROR(INDEX(tblDuomenys[],MATCH(I$5+$B9&RodytiVardą,tblDuomenys[DATA IR LAIKAS]&tblDuomenys[KAS],0),3),\"\")","v":""}]
[null,"09:00:00",{"$f":"IFERROR(INDEX(tblDuomenys[],MATCH(C$5+$B10&RodytiVardą,tblDuomenys[DATA IR LAIKAS]&tblDuomenys[KAS],0),3),\"\")","v":""},{"$f":"IFERROR(INDEX(tblDuomenys[],MATCH(D$5+$B10&RodytiVardą,tblDuomenys[DATA IR LAIKAS]&tblDuomenys[KAS],0),3),\"\")","v":""},{"$f":"IFERROR(INDEX(tblDuomenys[],MATCH(E$5+$B10&RodytiVardą,tblDuomenys[DATA IR LAIKAS]&tblDuomenys[KAS],0),3),\"\")","v":""},{"$f":"IFERROR(INDEX(tblDuomenys[],MATCH(F$5+$B10&RodytiVardą,tblDuomenys[DATA IR LAIKAS]&tblDuomenys[KAS],0),3),\"\")","v":""},{"$f":"IFERROR(INDEX(tblDuomenys[],MATCH(G$5+$B10&RodytiVardą,tblDuomenys[DATA IR LAIKAS]&tblDuomenys[KAS],0),3),\"\")","v":""},{"$f":"IFERROR(INDEX(tblDuomenys[],MATCH(H$5+$B10&RodytiVardą,tblDuomenys[DATA IR LAIKAS]&tblDuomenys[KAS],0),3),\"\")","v":""},{"$f":"IFERROR(INDEX(tblDuomenys[],MATCH(I$5+$B10&RodytiVardą,tblDuomenys[DATA IR LAIKAS]&tblDuomenys[KAS],0),3),\"\")","v":""}]
[null,"10:00:00",{"$f":"IFERROR(INDEX(tblDuomenys[],MATCH(C$5+$B11&RodytiVardą,tblDuomenys[DATA IR LAIKAS]&tblDuomenys[KAS],0),3),\"\")","v":""},{"$f":"IFERROR(INDEX(tblDuomenys[],MATCH(D$5+$B11&RodytiVardą,tblDuomenys[DATA IR LAIKAS]&tblDuomenys[KAS],0),3),\"\")","v":""},{"$f":"IFERROR(INDEX(tblDuomenys[],MATCH(E$5+$B11&RodytiVardą,tblDuomenys[DATA IR LAIKAS]&tblDuomenys[KAS],0),3),\"\")","v":"Paradas miesto centre"},{"$f":"IFERROR(INDEX(tblDuomenys[],MATCH(F$5+$B11&RodytiVardą,tblDuomenys[DATA IR LAIKAS]&tblDuomenys[KAS],0),3),\"\")","v":""},{"$f":"IFERROR(INDEX(tblDuomenys[],MATCH(G$5+$B11&RodytiVardą,tblDuomenys[DATA IR LAIKAS]&tblDuomenys[KAS],0),3),\"\")","v":""},{"$f":"IFERROR(INDEX(tblDuomenys[],MATCH(H$5+$B11&RodytiVardą,tblDuomenys[DATA IR LAIKAS]&tblDuomenys[KAS],0),3),\"\")","v":""},{"$f":"IFERROR(INDEX(tblDuomenys[],MATCH(I$5+$B11&RodytiVardą,tblDuomenys[DATA IR LAIKAS]&tblDuomenys[KAS],0),3),\"\")","v":""}]
[null,"11:00:00",{"$f":"IFERROR(INDEX(tblDuomenys[],MATCH(C$5+$B12&RodytiVardą,tblDuomenys[DATA IR LAIKAS]&tblDuomenys[KAS],0),3),\"\")","v":""},{"$f":"IFERROR(INDEX(tblDuomenys[],MATCH(D$5+$B12&RodytiVardą,tblDuomenys[DATA IR LAIKAS]&tblDuomenys[KAS],0),3),\"\")","v":""},{"$f":"IFERROR(INDEX(tblDuomenys[],MATCH(E$5+$B12&RodytiVardą,tblDuomenys[DATA IR LAIKAS]&tblDuomenys[KAS],0),3),\"\")","v":""},{"$f":"IFERROR(INDEX(tblDuomenys[],MATCH(F$5+$B12&RodytiVardą,tblDuomenys[DATA IR LAIKAS]&tblDuomenys[KAS],0),3),\"\")","v":""},{"$f":"IFERROR(INDEX(tblDuomenys[],MATCH(G$5+$B12&RodytiVardą,tblDuomenys[DATA IR LAIKAS]&tblDuomenys[KAS],0),3),\"\")","v":"Šeimos kepsnių vakarėlis"},{"$f":"IFERROR(INDEX(tblDuomenys[],MATCH(H$5+$B12&RodytiVardą,tblDuomenys[DATA IR LAIKAS]&tblDuomenys[KAS],0),3),\"\")","v":""},{"$f":"IFERROR(INDEX(tblDuomenys[],MATCH(I$5+$B12&RodytiVardą,tblDuomenys[DATA IR LAIKAS]&tblDuomenys[KAS],0),3),\"\")","v":""}]
[null,"12:00:00",{"$f":"IFERROR(INDEX(tblDuomenys[],MATCH(C$5+$B13&RodytiVardą,tblDuomenys[DATA IR LAIKAS]&tblDuomenys[KAS],0),3),\"\")","v":""},{"$f":"IFERROR(INDEX(tblDuomenys[],MATCH(D$5+$B13&RodytiVardą,tblDuomenys[DATA IR LAIKAS]&tblDuomenys[KAS],0),3),\"\")","v":""},{"$f":"IFERROR(INDEX(tblDuomenys[],MATCH(E$5+$B13&RodytiVardą,tblDuomenys[DATA IR LAIKAS]&tblDuomenys[KAS],0),3),\"\")","v":""},{"$f":"IFERROR(INDEX(tblDuomenys[],MATCH(F$5+$B13&RodytiVardą,tblDuomenys[DATA IR LAIKAS]&tblDuomenys[KAS],0),3),\"\")","v":""},{"$f":"IFERROR(INDEX(tblDuomenys[],MATCH(G$5+$B13&RodytiVardą,tblDuomenys[DATA IR LAIKAS]&tblDuomenys[KAS],0),3),\"\")","v":""},{"$f":"IFERROR(INDEX(tblDuomenys[],MATCH(H$5+$B13&RodytiVardą,tblDuomenys[DATA IR LAIKAS]&tblDuomenys[KAS],0),3),\"\")","v":""},{"$f":"IFERROR(INDEX(tblDuomenys[],MATCH(I$5+$B13&RodytiVardą,tblDuomenys[DATA IR LAIKAS]&tblDuomenys[KAS],0),3),\"\")","v":""}]
[null,"13:00:00",{"$f":"IFERROR(INDEX(tblDuomenys[],MATCH(C$5+$B14&RodytiVardą,tblDuomenys[DATA IR LAIKAS]&tblDuomenys[KAS],0),3),\"\")","v":""},{"$f":"IFERROR(INDEX(tblDuomenys[],MATCH(D$5+$B14&RodytiVardą,tblDuomenys[DATA IR LAIKAS]&tblDuomenys[KAS],0),3),\"\")","v":""},{"$f":"IFERROR(INDEX(tblDuomenys[],MATCH(E$5+$B14&RodytiVardą,tblDuomenys[DATA IR LAIKAS]&tblDuomenys[KAS],0),3),\"\")","v":""},{"$f":"IFERROR(INDEX(tblDuomenys[],MATCH(F$5+$B14&RodytiVardą,tblDuomenys[DATA IR LAIKAS]&tblDuomenys[KAS],0),3),\"\")","v":""},{"$f":"IFERROR(INDEX(tblDuomenys[],MATCH(G$5+$B14&RodytiVardą,tblDuomenys[DATA IR LAIKAS]&tblDuomenys[KAS],0),3),\"\")","v":""},{"$f":"IFERROR(INDEX(tblDuomenys[],MATCH(H$5+$B14&RodytiVardą,tblDuomenys[DATA IR LAIKAS]&tblDuomenys[KAS],0),3),\"\")","v":""},{"$f":"IFERROR(INDEX(tblDuomenys[],MATCH(I$5+$B14&RodytiVardą,tblDuomenys[DATA IR LAIKAS]&tblDuomenys[KAS],0),3),\"\")","v":""}]
[null,"14:00:00",{"$f":"IFERROR(INDEX(tblDuomenys[],MATCH(C$5+$B15&RodytiVardą,tblDuomenys[DATA IR LAIKAS]&tblDuomenys[KAS],0),3),\"\")","v":""},{"$f":"IFERROR(INDEX(tblDuomenys[],MATCH(D$5+$B15&RodytiVardą,tblDuomenys[DATA IR LAIKAS]&tblDuomenys[KAS],0),3),\"\")","v":""},{"$f":"IFERROR(INDEX(tblDuomenys[],MATCH(E$5+$B15&RodytiVardą,tblDuomenys[DATA IR LAIKAS]&tblDuomenys[KAS],0),3),\"\")","v":""},{"$f":"IFERROR(INDEX(tblDuomenys[],MATCH(F$5+$B15&RodytiVardą,tblDuomenys[DATA IR LAIKAS]&tblDuomenys[KAS],0),3),\"\")","v":""},{"$f":"IFERROR(INDEX(tblDuomenys[],MATCH(G$5+$B15&RodytiVardą,tblDuomenys[DATA IR LAIKAS]&tblDuomenys[KAS],0),3),\"\")","v":""},{"$f":"IFERROR(INDEX(tblDuomenys[],MATCH(H$5+$B15&RodytiVardą,tblDuomenys[DATA IR LAIKAS]&tblDuomenys[KAS],0),3),\"\")","v":""},{"$f":"IFERROR(INDEX(tblDuomenys[],MATCH(I$5+$B15&RodytiVardą,tblDuomenys[DATA IR LAIKAS]&tblDuomenys[KAS],0),3),\"\")","v":""}]
[null,"15:00:00",{"$f":"IFERROR(INDEX(tblDuomenys[],MATCH(C$5+$B16&RodytiVardą,tblDuomenys[DATA IR LAIKAS]&tblDuomenys[KAS],0),3),\"\")","v":""},{"$f":"IFERROR(INDEX(tblDuomenys[],MATCH(D$5+$B16&RodytiVardą,tblDuomenys[DATA IR LAIKAS]&tblDuomenys[KAS],0),3),\"\")","v":""},{"$f":"IFERROR(INDEX(tblDuomenys[],MATCH(E$5+$B16&RodytiVardą,tblDuomenys[DATA IR LAIKAS]&tblDuomenys[KAS],0),3),\"\")","v":""},{"$f":"IFERROR(INDEX(tblDuomenys[],MATCH(F$5+$B16&RodytiVardą,tblDuomenys[DATA IR LAIKAS]&tblDuomenys[KAS],0),3),\"\")","v":""},{"$f":"IFERROR(INDEX(tblDuomenys[],MATCH(G$5+$B16&RodytiVardą,tblDuomenys[DATA IR LAIKAS]&tblDuomenys[KAS],0),3),\"\")","v":""},{"$f":"IFERROR(INDEX(tblDuomenys[],MATCH(H$5+$B16&RodytiVardą,tblDuomenys[DATA IR LAIKAS]&tblDuomenys[KAS],0),3),\"\")","v":""},{"$f":"IFERROR(INDEX(tblDuomenys[],MATCH(I$5+$B16&RodytiVardą,tblDuomenys[DATA IR LAIKAS]&tblDuomenys[KAS],0),3),\"\")","v":""}]
[null,"16:00:00",{"$f":"IFERROR(INDEX(tblDuomenys[],MATCH(C$5+$B17&RodytiVardą,tblDuomenys[DATA IR LAIKAS]&tblDuomenys[KAS],0),3),\"\")","v":""},{"$f":"IFERROR(INDEX(tblDuomenys[],MATCH(D$5+$B17&RodytiVardą,tblDuomenys[DATA IR LAIKAS]&tblDuomenys[KAS],0),3),\"\")","v":"Išvyką į namelį"},{"$f":"IFERROR(INDEX(tblDuomenys[],MATCH(E$5+$B17&RodytiVardą,tblDuomenys[DATA IR LAIKAS]&tblDuomenys[KAS],0),3),\"\")","v":""},{"$f":"IFERROR(INDEX(tblDuomenys[],MATCH(F$5+$B17&RodytiVardą,tblDuomenys[DATA IR LAIKAS]&tblDuomenys[KAS],0),3),\"\")","v":""},{"$f":"IFERROR(INDEX(tblDuomenys[],MATCH(G$5+$B17&RodytiVardą,tblDuomenys[DATA IR LAIKAS]&tblDuomenys[KAS],0),3),\"\")","v":""},{"$f":"IFERROR(INDEX(tblDuomenys[],MATCH(H$5+$B17&RodytiVardą,tblDuomenys[DATA IR LAIKAS]&tblDuomenys[KAS],0),3),\"\")","v":""},{"$f":"IFERROR(INDEX(tblDuomenys[],MATCH(I$5+$B17&RodytiVardą,tblDuomenys[DATA IR LAIKAS]&tblDuomenys[KAS],0),3),\"\")","v":""}]
[null,"17:00:00",{"$f":"IFERROR(INDEX(tblDuomenys[],MATCH(C$5+$B18&RodytiVardą,tblDuomenys[DATA IR LAIKAS]&tblDuomenys[KAS],0),3),\"\")","v":""},{"$f":"IFERROR(INDEX(tblDuomenys[],MATCH(D$5+$B18&RodytiVardą,tblDuomenys[DATA IR LAIKAS]&tblDuomenys[KAS],0),3),\"\")","v":""},{"$f":"IFERROR(INDEX(tblDuomenys[],MATCH(E$5+$B18&RodytiVardą,tblDuomenys[DATA IR LAIKAS]&tblDuomenys[KAS],0),3),\"\")","v":""},{"$f":"IFERROR(INDEX(tblDuomenys[],MATCH(F$5+$B18&RodytiVardą,tblDuomenys[DATA IR LAIKAS]&tblDuomenys[KAS],0),3),\"\")","v":""},{"$f":"IFERROR(INDEX(tblDuomenys[],MATCH(G$5+$B18&RodytiVardą,tblDuomenys[DATA IR LAIKAS]&tblDuomenys[KAS],0),3),\"\")","v":""},{"$f":"IFERROR(INDEX(tblDuomenys[],MATCH(H$5+$B18&RodytiVardą,tblDuomenys[DATA IR LAIKAS]&tblDuomenys[KAS],0),3),\"\")","v":""},{"$f":"IFERROR(INDEX(tblDuomenys[],MATCH(I$5+$B18&RodytiVardą,tblDuomenys[DATA IR LAIKAS]&tblDuomenys[KAS],0),3),\"\")","v":"Grįžimas namo"}]
[null,"18:00:00",{"$f":"IFERROR(INDEX(tblDuomenys[],MATCH(C$5+$B19&RodytiVardą,tblDuomenys[DATA IR LAIKAS]&tblDuomenys[KAS],0),3),\"\")","v":"Priimti vaistus"},{"$f":"IFERROR(INDEX(tblDuomenys[],MATCH(D$5+$B19&RodytiVardą,tblDuomenys[DATA IR LAIKAS]&tblDuomenys[KAS],0),3),\"\")","v":""},{"$f":"IFERROR(INDEX(tblDuomenys[],MATCH(E$5+$B19&RodytiVardą,tblDuomenys[DATA IR LAIKAS]&tblDuomenys[KAS],0),3),\"\")","v":""},{"$f":"IFERROR(INDEX(tblDuomenys[],MATCH(F$5+$B19&RodytiVardą,tblDuomenys[DATA IR LAIKAS]&tblDuomenys[KAS],0),3),\"\")","v":""},{"$f":"IFERROR(INDEX(tblDuomenys[],MATCH(G$5+$B19&RodytiVardą,tblDuomenys[DATA IR LAIKAS]&tblDuomenys[KAS],0),3),\"\")","v":""},{"$f":"IFERROR(INDEX(tblDuomenys[],MATCH(H$5+$B19&RodytiVardą,tblDuomenys[DATA IR LAIKAS]&tblDuomenys[KAS],0),3),\"\")","v":""},{"$f":"IFERROR(INDEX(tblDuomenys[],MATCH(I$5+$B19&RodytiVardą,tblDuomenys[DATA IR LAIKAS]&tblDuomenys[KAS],0),3),\"\")","v":""}]
[null,"19:00:00",{"$f":"IFERROR(INDEX(tblDuomenys[],MATCH(C$5+$B20&RodytiVardą,tblDuomenys[DATA IR LAIKAS]&tblDuomenys[KAS],0),3),\"\")","v":""},{"$f":"IFERROR(INDEX(tblDuomenys[],MATCH(D$5+$B20&RodytiVardą,tblDuomenys[DATA IR LAIKAS]&tblDuomenys[KAS],0),3),\"\")","v":""},{"$f":"IFERROR(INDEX(tblDuomenys[],MATCH(E$5+$B20&RodytiVardą,tblDuomenys[DATA IR LAIKAS]&tblDuomenys[KAS],0),3),\"\")","v":""},{"$f":"IFERROR(INDEX(tblDuomenys[],MATCH(F$5+$B20&RodytiVardą,tblDuomenys[DATA IR LAIKAS]&tblDuomenys[KAS],0),3),\"\")","v":""},{"$f":"IFERROR(INDEX(tblDuomenys[],MATCH(G$5+$B20&RodytiVardą,tblDuomenys[DATA IR LAIKAS]&tblDuomenys[KAS],0),3),\"\")","v":""},{"$f":"IFERROR(INDEX(tblDuomenys[],MATCH(H$5+$B20&RodytiVardą,tblDuomenys[DATA IR LAIKAS]&tblDuomenys[KAS],0),3),\"\")","v":""},{"$f":"IFERROR(INDEX(tblDuomenys[],MATCH(I$5+$B20&RodytiVardą,tblDuomenys[DATA IR LAIKAS]&tblDuomenys[KAS],0),3),\"\")","v":""}]
[null,"20:00:00",{"$f":"IFERROR(INDEX(tblDuomenys[],MATCH(C$5+$B21&RodytiVardą,tblDuomenys[DATA IR LAIKAS]&tblDuomenys[KAS],0),3),\"\")","v":"Filmas su šeima"},{"$f":"IFERROR(INDEX(tblDuomenys[],MATCH(D$5+$B21&RodytiVardą,tblDuomenys[DATA IR LAIKAS]&tblDuomenys[KAS],0),3),\"\")","v":""},{"$f":"IFERROR(INDEX(tblDuomenys[],MATCH(E$5+$B21&RodytiVardą,tblDuomenys[DATA IR LAIKAS]&tblDuomenys[KAS],0),3),\"\")","v":""},{"$f":"IFERROR(INDEX(tblDuomenys[],MATCH(F$5+$B21&RodytiVardą,tblDuomenys[DATA IR LAIKAS]&tblDuomenys[KAS],0),3),\"\")","v":"Fejerverkų pasirodymas"},{"$f":"IFERROR(INDEX(tblDuomenys[],MATCH(G$5+$B21&RodytiVardą,tblDuomenys[DATA IR LAIKAS]&tblDuomenys[KAS],0),3),\"\")","v":""},{"$f":"IFERROR(INDEX(tblDuomenys[],MATCH(H$5+$B21&RodytiVardą,tblDuomenys[DATA IR LAIKAS]&tblDuomenys[KAS],0),3),\"\")","v":""},{"$f":"IFERROR(INDEX(tblDuomenys[],MATCH(I$5+$B21&RodytiVardą,tblDuomenys[DATA IR LAIKAS]&tblDuomenys[KAS],0),3),\"\")","v":""}]
[null,"21:00:00",{"$f":"IFERROR(INDEX(tblDuomenys[],MATCH(C$5+$B22&RodytiVardą,tblDuomenys[DATA IR LAIKAS]&tblDuomenys[KAS],0),3),\"\")","v":""},{"$f":"IFERROR(INDEX(tblDuomenys[],MATCH(D$5+$B22&RodytiVardą,tblDuomenys[DATA IR LAIKAS]&tblDuomenys[KAS],0),3),\"\")","v":""},{"$f":"IFERROR(INDEX(tblDuomenys[],MATCH(E$5+$B22&RodytiVardą,tblDuomenys[DATA IR LAIKAS]&tblDuomenys[KAS],0),3),\"\")","v":""},{"$f":"IFERROR(INDEX(tblDuomenys[],MATCH(F$5+$B22&RodytiVardą,tblDuomenys[DATA IR LAIKAS]&tblDuomenys[KAS],0),3),\"\")","v":""},{"$f":"IFERROR(INDEX(tblDuomenys[],MATCH(G$5+$B22&RodytiVardą,tblDuomenys[DATA IR LAIKAS]&tblDuomenys[KAS],0),3),\"\")","v":""},{"$f":"IFERROR(INDEX(tblDuomenys[],MATCH(H$5+$B22&RodytiVardą,tblDuomenys[DATA IR LAIKAS]&tblDuomenys[KAS],0),3),\"\")","v":""},{"$f":"IFERROR(INDEX(tblDuomenys[],MATCH(I$5+$B22&RodytiVardą,tblDuomenys[DATA IR LAIKAS]&tblDuomenys[KAS],0),3),\"\")","v":""}]
[null,"22:00:00",{"$f":"IFERROR(INDEX(tblDuomenys[],MATCH(C$5+$B23&RodytiVardą,tblDuomenys[DATA IR LAIKAS]&tblDuomenys[KAS],0),3),\"\")","v":""},{"$f":"IFERROR(INDEX(tblDuomenys[],MATCH(D$5+$B23&RodytiVardą,tblDuomenys[DATA IR LAIKAS]&tblDuomenys[KAS],0),3),\"\")","v":""},{"$f":"IFERROR(INDEX(tblDuomenys[],MATCH(E$5+$B23&RodytiVardą,tblDuomenys[DATA IR LAIKAS]&tblDuomenys[KAS],0),3),\"\")","v":""},{"$f":"IFERROR(INDEX(tblDuomenys[],MATCH(F$5+$B23&RodytiVardą,tblDuomenys[DATA IR LAIKAS]&tblDuomenys[KAS],0),3),\"\")","v":""},{"$f":"IFERROR(INDEX(tblDuomenys[],MATCH(G$5+$B23&RodytiVardą,tblDuomenys[DATA IR LAIKAS]&tblDuomenys[KAS],0),3),\"\")","v":""},{"$f":"IFERROR(INDEX(tblDuomenys[],MATCH(H$5+$B23&RodytiVardą,tblDuomenys[DATA IR LAIKAS]&tblDuomenys[KAS],0),3),\"\")","v":""},{"$f":"IFERROR(INDEX(tblDuomenys[],MATCH(I$5+$B23&RodytiVardą,tblDuomenys[DATA IR LAIKAS]&tblDuomenys[KAS],0),3),\"\")","v":""}]

{"sheet":"Duomenų įrašas","index":1,"n_rows":14,"n_cols":4,"rows_kept":14}
[null,"DUOMENŲ ĮVESTIS"]
[]
[null,"DATA IR LAIKAS","KAS","UŽDUOTIS"]
[null,"2012-07-02T08:00:00","Ana","Daktaro apžiūros paskyrimas"]
[null,"2012-07-02T18:00:00","Morisas","Priimti vaistus"]
[null,"2012-07-02T18:30:00","Morisas","Pietūs su Pate"]
[null,"2012-07-02T20:00:00","Morisas","Filmas su šeima"]
[null,"2012-07-03T16:00:00","Morisas","Išvyką į namelį"]
[null,"2012-07-04T10:00:00","Morisas","Paradas miesto centre"]
[null,"2012-07-05T20:00:00","Morisas","Fejerverkų pasirodymas"]
[null,"2012-07-06T11:00:00","Morisas","Šeimos kepsnių vakarėlis"]
[null,"2012-07-07","Morisas","Bendruomenės piknikas"]
[null,"2012-07-08T17:00:00","Morisas","Grįžimas namo"]
[null,"2012-07-02T10:00:00","Ana","Pianino pamokos"]

{"sheet":"Vardų apžvalga","index":2,"n_rows":132,"n_cols":2,"rows_kept":132,"hidden":true,"merged":[[0,0,0,1]]}
["Šio sąrašo tvarkaraščio lapo H3 langelyje pateikiamas išplečiamasis vardų sąrašas. Bet kokie šiame lape atlikti pakeitimai gali sukelti klaidą."]
["UNIKALUS PAVADINIMAS","EILUTĖS NUMERIS"]
[{"$f":"IFERROR(INDEX(LaukasKas,MATCH(0,COUNTIF($A$2:A2,LaukasKas),0)),\"\")","v":"Ana"},{"$f":"IF(A3=\"\",\"\",ROW())","v":3}]
[{"$f":"IFERROR(INDEX(LaukasKas,MATCH(0,COUNTIF($A$2:A3,LaukasKas),0)),\"\")","v":"Morisas"},{"$f":"IF(A4=\"\",\"\",ROW())","v":4}]
[{"$f":"IFERROR(INDEX(LaukasKas,MATCH(0,COUNTIF($A$2:A4,LaukasKas),0)),\"\")","v":""},""]
[{"$f":"IFERROR(INDEX(LaukasKas,MATCH(0,COUNTIF($A$2:A5,LaukasKas),0)),\"\")","v":""},""]
[{"$f":"IFERROR(INDEX(LaukasKas,MATCH(0,COUNTIF($A$2:A6,LaukasKas),0)),\"\")","v":""},""]
[{"$f":"IFERROR(INDEX(LaukasKas,MATCH(0,COUNTIF($A$2:A7,LaukasKas),0)),\"\")","v":""},""]
[{"$f":"IFERROR(INDEX(LaukasKas,MATCH(0,COUNTIF($A$2:A8,LaukasKas),0)),\"\")","v":""},""]
[{"$f":"IFERROR(INDEX(LaukasKas,MATCH(0,COUNTIF($A$2:A9,LaukasKas),0)),\"\")","v":""},""]
[{"$f":"IFERROR(INDEX(LaukasKas,MATCH(0,COUNTIF($A$2:A10,LaukasKas),0)),\"\")","v":""},""]
[{"$f":"IFERROR(INDEX(LaukasKas,MATCH(0,COUNTIF($A$2:A11,LaukasKas),0)),\"\")","v":""},""]
[{"$f":"IFERROR(INDEX(LaukasKas,MATCH(0,COUNTIF($A$2:A12,LaukasKas),0)),\"\")","v":""},""]
[{"$f":"IFERROR(INDEX(LaukasKas,MATCH(0,COUNTIF($A$2:A13,LaukasKas),0)),\"\")","v":""},""]
[{"$f":"IFERROR(INDEX(LaukasKas,MATCH(0,COUNTIF($A$2:A14,LaukasKas),0)),\"\")","v":""},""]
[{"$f":"IFERROR(INDEX(LaukasKas,MATCH(0,COUNTIF($A$2:A15,LaukasKas),0)),\"\")","v":""},""]
[{"$f":"IFERROR(INDEX(LaukasKas,MATCH(0,COUNTIF($A$2:A16,LaukasKas),0)),\"\")","v":""},""]
[{"$f":"IFERROR(INDEX(LaukasKas,MATCH(0,COUNTIF($A$2:A17,LaukasKas),0)),\"\")","v":""},""]
[{"$f":"IFERROR(INDEX(LaukasKas,MATCH(0,COUNTIF($A$2:A18,LaukasKas),0)),\"\")","v":""},""]
[{"$f":"IFERROR(INDEX(LaukasKas,MATCH(0,COUNTIF($A$2:A19,LaukasKas),0)),\"\")","v":""},""]
[{"$f":"IFERROR(INDEX(LaukasKas,MATCH(0,COUNTIF($A$2:A20,LaukasKas),0)),\"\")","v":""},""]
[{"$f":"IFERROR(INDEX(LaukasKas,MATCH(0,COUNTIF($A$2:A21,LaukasKas),0)),\"\")","v":""},""]
[{"$f":"IFERROR(INDEX(LaukasKas,MATCH(0,COUNTIF($A$2:A22,LaukasKas),0)),\"\")","v":""},""]
[{"$f":"IFERROR(INDEX(LaukasKas,MATCH(0,COUNTIF($A$2:A23,LaukasKas),0)),\"\")","v":""},""]
[{"$f":"IFERROR(INDEX(LaukasKas,MATCH(0,COUNTIF($A$2:A24,LaukasKas),0)),\"\")","v":""},""]
[{"$f":"IFERROR(INDEX(LaukasKas,MATCH(0,COUNTIF($A$2:A25,LaukasKas),0)),\"\")","v":""},""]
[{"$f":"IFERROR(INDEX(LaukasKas,MATCH(0,COUNTIF($A$2:A26,LaukasKas),0)),\"\")","v":""},""]
[{"$f":"IFERROR(INDEX(LaukasKas,MATCH(0,COUNTIF($A$2:A27,LaukasKas),0)),\"\")","v":""},""]
[{"$f":"IFERROR(INDEX(LaukasKas,MATCH(0,COUNTIF($A$2:A28,LaukasKas),0)),\"\")","v":""},""]
[{"$f":"IFERROR(INDEX(LaukasKas,MATCH(0,COUNTIF($A$2:A29,LaukasKas),0)),\"\")","v":""},""]
[{"$f":"IFERROR(INDEX(LaukasKas,MATCH(0,COUNTIF($A$2:A30,LaukasKas),0)),\"\")","v":""},""]
[{"$f":"IFERROR(INDEX(LaukasKas,MATCH(0,COUNTIF($A$2:A31,LaukasKas),0)),\"\")","v":""},""]
[{"$f":"IFERROR(INDEX(LaukasKas,MATCH(0,COUNTIF($A$2:A32,LaukasKas),0)),\"\")","v":""},""]
[{"$f":"IFERROR(INDEX(LaukasKas,MATCH(0,COUNTIF($A$2:A33,LaukasKas),0)),\"\")","v":""},""]
[{"$f":"IFERROR(INDEX(LaukasKas,MATCH(0,COUNTIF($A$2:A34,LaukasKas),0)),\"\")","v":""},""]
[{"$f":"IFERROR(INDEX(LaukasKas,MATCH(0,COUNTIF($A$2:A35,LaukasKas),0)),\"\")","v":""},""]
[{"$f":"IFERROR(INDEX(LaukasKas,MATCH(0,COUNTIF($A$2:A36,LaukasKas),0)),\"\")","v":""},""]
[{"$f":"IFERROR(INDEX(LaukasKas,MATCH(0,COUNTIF($A$2:A37,LaukasKas),0)),\"\")","v":""},""]
[{"$f":"IFERROR(INDEX(LaukasKas,MATCH(0,COUNTIF($A$2:A38,LaukasKas),0)),\"\")","v":""},""]
[{"$f":"IFERROR(INDEX(LaukasKas,MATCH(0,COUNTIF($A$2:A39,LaukasKas),0)),\"\")","v":""},""]
[{"$f":"IFERROR(INDEX(LaukasKas,MATCH(0,COUNTIF($A$2:A40,LaukasKas),0)),\"\")","v":""},""]
[{"$f":"IFERROR(INDEX(LaukasKas,MATCH(0,COUNTIF($A$2:A41,LaukasKas),0)),\"\")","v":""},""]
[{"$f":"IFERROR(INDEX(LaukasKas,MATCH(0,COUNTIF($A$2:A42,LaukasKas),0)),\"\")","v":""},""]
[{"$f":"IFERROR(INDEX(LaukasKas,MATCH(0,COUNTIF($A$2:A43,LaukasKas),0)),\"\")","v":""},""]
[{"$f":"IFERROR(INDEX(LaukasKas,MATCH(0,COUNTIF($A$2:A44,LaukasKas),0)),\"\")","v":""},""]
[{"$f":"IFERROR(INDEX(LaukasKas,MATCH(0,COUNTIF($A$2:A45,LaukasKas),0)),\"\")","v":""},""]
[{"$f":"IFERROR(INDEX(LaukasKas,MATCH(0,COUNTIF($A$2:A46,LaukasKas),0)),\"\")","v":""},""]
[{"$f":"IFERROR(INDEX(LaukasKas,MATCH(0,COUNTIF($A$2:A47,LaukasKas),0)),\"\")","v":""},""]
[{"$f":"IFERROR(INDEX(LaukasKas,MATCH(0,COUNTIF($A$2:A48,LaukasKas),0)),\"\")","v":""},""]
[{"$f":"IFERROR(INDEX(LaukasKas,MATCH(0,COUNTIF($A$2:A49,LaukasKas),0)),\"\")","v":""},""]
[{"$f":"IFERROR(INDEX(LaukasKas,MATCH(0,COUNTIF($A$2:A50,LaukasKas),0)),\"\")","v":""},""]
[{"$f":"IFERROR(INDEX(LaukasKas,MATCH(0,COUNTIF($A$2:A51,LaukasKas),0)),\"\")","v":""},""]
[{"$f":"IFERROR(INDEX(LaukasKas,MATCH(0,COUNTIF($A$2:A52,LaukasKas),0)),\"\")","v":""},""]
[{"$f":"IFERROR(INDEX(LaukasKas,MATCH(0,COUNTIF($A$2:A53,LaukasKas),0)),\"\")","v":""},""]
[{"$f":"IFERROR(INDEX(LaukasKas,MATCH(0,COUNTIF($A$2:A54,LaukasKas),0)),\"\")","v":""},""]
[{"$f":"IFERROR(INDEX(LaukasKas,MATCH(0,COUNTIF($A$2:A55,LaukasKas),0)),\"\")","v":""},""]
[{"$f":"IFERROR(INDEX(LaukasKas,MATCH(0,COUNTIF($A$2:A56,LaukasKas),0)),\"\")","v":""},""]
[{"$f":"IFERROR(INDEX(LaukasKas,MATCH(0,COUNTIF($A$2:A57,LaukasKas),0)),\"\")","v":""},""]
[{"$f":"IFERROR(INDEX(LaukasKas,MATCH(0,COUNTIF($A$2:A58,LaukasKas),0)),\"\")","v":""},""]
[{"$f":"IFERROR(INDEX(LaukasKas,MATCH(0,COUNTIF($A$2:A59,LaukasKas),0)),\"\")","v":""},""]
[{"$f":"IFERROR(INDEX(LaukasKas,MATCH(0,COUNTIF($A$2:A60,LaukasKas),0)),\"\")","v":""},""]
[{"$f":"IFERROR(INDEX(LaukasKas,MATCH(0,COUNTIF($A$2:A61,LaukasKas),0)),\"\")","v":""},""]
[{"$f":"IFERROR(INDEX(LaukasKas,MATCH(0,COUNTIF($A$2:A62,LaukasKas),0)),\"\")","v":""},""]
[{"$f":"IFERROR(INDEX(LaukasKas,MATCH(0,COUNTIF($A$2:A63,LaukasKas),0)),\"\")","v":""},""]
[{"$f":"IFERROR(INDEX(LaukasKas,MATCH(0,COUNTIF($A$2:A64,LaukasKas),0)),\"\")","v":""},""]
[{"$f":"IFERROR(INDEX(LaukasKas,MATCH(0,COUNTIF($A$2:A65,LaukasKas),0)),\"\")","v":""},""]
[{"$f":"IFERROR(INDEX(LaukasKas,MATCH(0,COUNTIF($A$2:A66,LaukasKas),0)),\"\")","v":""},""]
[{"$f":"IFERROR(INDEX(LaukasKas,MATCH(0,COUNTIF($A$2:A67,LaukasKas),0)),\"\")","v":""},{"$f":"IF(A68=\"\",\"\",ROW())","v":""}]
[{"$f":"IFERROR(INDEX(LaukasKas,MATCH(0,COUNTIF($A$2:A68,LaukasKas),0)),\"\")","v":""},""]
[{"$f":"IFERROR(INDEX(LaukasKas,MATCH(0,COUNTIF($A$2:A69,LaukasKas),0)),\"\")","v":""},""]
[{"$f":"IFERROR(INDEX(LaukasKas,MATCH(0,COUNTIF($A$2:A70,LaukasKas),0)),\"\")","v":""},""]
[{"$f":"IFERROR(INDEX(LaukasKas,MATCH(0,COUNTIF($A$2:A71,LaukasKas),0)),\"\")","v":""},""]
[{"$f":"IFERROR(INDEX(LaukasKas,MATCH(0,COUNTIF($A$2:A72,LaukasKas),0)),\"\")","v":""},""]
[{"$f":"IFERROR(INDEX(LaukasKas,MATCH(0,COUNTIF($A$2:A73,LaukasKas),0)),\"\")","v":""},""]
[{"$f":"IFERROR(INDEX(LaukasKas,MATCH(0,COUNTIF($A$2:A74,LaukasKas),0)),\"\")","v":""},""]
[{"$f":"IFERROR(INDEX(LaukasKas,MATCH(0,COUNTIF($A$2:A75,LaukasKas),0)),\"\")","v":""},""]
[{"$f":"IFERROR(INDEX(LaukasKas,MATCH(0,COUNTIF($A$2:A76,LaukasKas),0)),\"\")","v":""},""]
[{"$f":"IFERROR(INDEX(LaukasKas,MATCH(0,COUNTIF($A$2:A77,LaukasKas),0)),\"\")","v":""},""]
[{"$f":"IFERROR(INDEX(LaukasKas,MATCH(0,COUNTIF($A$2:A78,LaukasKas),0)),\"\")","v":""},""]
[{"$f":"IFERROR(INDEX(LaukasKas,MATCH(0,COUNTIF($A$2:A79,LaukasKas),0)),\"\")","v":""},""]
[{"$f":"IFERROR(INDEX(LaukasKas,MATCH(0,COUNTIF($A$2:A80,LaukasKas),0)),\"\")","v":""},""]
[{"$f":"IFERROR(INDEX(LaukasKas,MATCH(0,COUNTIF($A$2:A81,LaukasKas),0)),\"\")","v":""},""]
[{"$f":"IFERROR(INDEX(LaukasKas,MATCH(0,COUNTIF($A$2:A82,LaukasKas),0)),\"\")","v":""},""]
[{"$f":"IFERROR(INDEX(LaukasKas,MATCH(0,COUNTIF($A$2:A83,LaukasKas),0)),\"\")","v":""},""]
[{"$f":"IFERROR(INDEX(LaukasKas,MATCH(0,COUNTIF($A$2:A84,LaukasKas),0)),\"\")","v":""},""]
[{"$f":"IFERROR(INDEX(LaukasKas,MATCH(0,COUNTIF($A$2:A85,LaukasKas),0)),\"\")","v":""},""]
[{"$f":"IFERROR(INDEX(LaukasKas,MATCH(0,COUNTIF($A$2:A86,LaukasKas),0)),\"\")","v":""},""]
[{"$f":"IFERROR(INDEX(LaukasKas,MATCH(0,COUNTIF($A$2:A87,LaukasKas),0)),\"\")","v":""},""]
[{"$f":"IFERROR(INDEX(LaukasKas,MATCH(0,COUNTIF($A$2:A88,LaukasKas),0)),\"\")","v":""},""]
[{"$f":"IFERROR(INDEX(LaukasKas,MATCH(0,COUNTIF($A$2:A89,LaukasKas),0)),\"\")","v":""},""]
[{"$f":"IFERROR(INDEX(LaukasKas,MATCH(0,COUNTIF($A$2:A90,LaukasKas),0)),\"\")","v":""},""]
[{"$f":"IFERROR(INDEX(LaukasKas,MATCH(0,COUNTIF($A$2:A91,LaukasKas),0)),\"\")","v":""},""]
[{"$f":"IFERROR(INDEX(LaukasKas,MATCH(0,COUNTIF($A$2:A92,LaukasKas),0)),\"\")","v":""},""]
[{"$f":"IFERROR(INDEX(LaukasKas,MATCH(0,COUNTIF($A$2:A93,LaukasKas),0)),\"\")","v":""},""]
[{"$f":"IFERROR(INDEX(LaukasKas,MATCH(0,COUNTIF($A$2:A94,LaukasKas),0)),\"\")","v":""},""]
[{"$f":"IFERROR(INDEX(LaukasKas,MATCH(0,COUNTIF($A$2:A95,LaukasKas),0)),\"\")","v":""},""]
[{"$f":"IFERROR(INDEX(LaukasKas,MATCH(0,COUNTIF($A$2:A96,LaukasKas),0)),\"\")","v":""},""]
[{"$f":"IFERROR(INDEX(LaukasKas,MATCH(0,COUNTIF($A$2:A97,LaukasKas),0)),\"\")","v":""},""]
[{"$f":"IFERROR(INDEX(LaukasKas,MATCH(0,COUNTIF($A$2:A98,LaukasKas),0)),\"\")","v":""},""]
[{"$f":"IFERROR(INDEX(LaukasKas,MATCH(0,COUNTIF($A$2:A99,LaukasKas),0)),\"\")","v":""},""]
[{"$f":"IFERROR(INDEX(LaukasKas,MATCH(0,COUNTIF($A$2:A100,LaukasKas),0)),\"\")","v":""},""]
[{"$f":"IFERROR(INDEX(LaukasKas,MATCH(0,COUNTIF($A$2:A101,LaukasKas),0)),\"\")","v":""},""]
[{"$f":"IFERROR(INDEX(LaukasKas,MATCH(0,COUNTIF($A$2:A102,LaukasKas),0)),\"\")","v":""},""]
[{"$f":"IFERROR(INDEX(LaukasKas,MATCH(0,COUNTIF($A$2:A103,LaukasKas),0)),\"\")","v":""},""]
[{"$f":"IFERROR(INDEX(LaukasKas,MATCH(0,COUNTIF($A$2:A104,LaukasKas),0)),\"\")","v":""},""]
[{"$f":"IFERROR(INDEX(LaukasKas,MATCH(0,COUNTIF($A$2:A105,LaukasKas),0)),\"\")","v":""},""]
[{"$f":"IFERROR(INDEX(LaukasKas,MATCH(0,COUNTIF($A$2:A106,LaukasKas),0)),\"\")","v":""},""]
[{"$f":"IFERROR(INDEX(LaukasKas,MATCH(0,COUNTIF($A$2:A107,LaukasKas),0)),\"\")","v":""},""]
[{"$f":"IFERROR(INDEX(LaukasKas,MATCH(0,COUNTIF($A$2:A108,LaukasKas),0)),\"\")","v":""},""]
[{"$f":"IFERROR(INDEX(LaukasKas,MATCH(0,COUNTIF($A$2:A109,LaukasKas),0)),\"\")","v":""},""]
[{"$f":"IFERROR(INDEX(LaukasKas,MATCH(0,COUNTIF($A$2:A110,LaukasKas),0)),\"\")","v":""},""]
[{"$f":"IFERROR(INDEX(LaukasKas,MATCH(0,COUNTIF($A$2:A111,LaukasKas),0)),\"\")","v":""},""]
[{"$f":"IFERROR(INDEX(LaukasKas,MATCH(0,COUNTIF($A$2:A112,LaukasKas),0)),\"\")","v":""},""]
[{"$f":"IFERROR(INDEX(LaukasKas,MATCH(0,COUNTIF($A$2:A113,LaukasKas),0)),\"\")","v":""},""]
[{"$f":"IFERROR(INDEX(LaukasKas,MATCH(0,COUNTIF($A$2:A114,LaukasKas),0)),\"\")","v":""},""]
[{"$f":"IFERROR(INDEX(LaukasKas,MATCH(0,COUNTIF($A$2:A115,LaukasKas),0)),\"\")","v":""},""]
[{"$f":"IFERROR(INDEX(LaukasKas,MATCH(0,COUNTIF($A$2:A116,LaukasKas),0)),\"\")","v":""},""]
[{"$f":"IFERROR(INDEX(LaukasKas,MATCH(0,COUNTIF($A$2:A117,LaukasKas),0)),\"\")","v":""},""]
[{"$f":"IFERROR(INDEX(LaukasKas,MATCH(0,COUNTIF($A$2:A118,LaukasKas),0)),\"\")","v":""},""]
[{"$f":"IFERROR(INDEX(LaukasKas,MATCH(0,COUNTIF($A$2:A119,LaukasKas),0)),\"\")","v":""},""]
[{"$f":"IFERROR(INDEX(LaukasKas,MATCH(0,COUNTIF($A$2:A120,LaukasKas),0)),\"\")","v":""},""]
[{"$f":"IFERROR(INDEX(LaukasKas,MATCH(0,COUNTIF($A$2:A121,LaukasKas),0)),\"\")","v":""},""]
[{"$f":"IFERROR(INDEX(LaukasKas,MATCH(0,COUNTIF($A$2:A122,LaukasKas),0)),\"\")","v":""},""]
[{"$f":"IFERROR(INDEX(LaukasKas,MATCH(0,COUNTIF($A$2:A123,LaukasKas),0)),\"\")","v":""},""]
[{"$f":"IFERROR(INDEX(LaukasKas,MATCH(0,COUNTIF($A$2:A124,LaukasKas),0)),\"\")","v":""},""]
[{"$f":"IFERROR(INDEX(LaukasKas,MATCH(0,COUNTIF($A$2:A125,LaukasKas),0)),\"\")","v":""},""]
[{"$f":"IFERROR(INDEX(LaukasKas,MATCH(0,COUNTIF($A$2:A126,LaukasKas),0)),\"\")","v":""},""]
[{"$f":"IFERROR(INDEX(LaukasKas,MATCH(0,COUNTIF($A$2:A127,LaukasKas),0)),\"\")","v":""},""]
[{"$f":"IFERROR(INDEX(LaukasKas,MATCH(0,COUNTIF($A$2:A128,LaukasKas),0)),\"\")","v":""},""]
[{"$f":"IFERROR(INDEX(LaukasKas,MATCH(0,COUNTIF($A$2:A129,LaukasKas),0)),\"\")","v":""},""]
[{"$f":"IFERROR(INDEX(LaukasKas,MATCH(0,COUNTIF($A$2:A130,LaukasKas),0)),\"\")","v":""},""]
[{"$f":"IFERROR(INDEX(LaukasKas,MATCH(0,COUNTIF($A$2:A131,LaukasKas),0)),\"\")","v":""},{"$f":"IF(A132=\"\",\"\",ROW())","v":""}]